fUSD/lending_fUSD_20251229
["ID","MTS","AMOUNT","RATE_DAILY","PERIOD"]
[400022004,1767030648891,-500.0,0.00023041,2]
[400022005,1767030648901,-298.26089446,0.00023069,2]
[400022006,1767030648910,-309.03322409,0.00023071,2]
[400022007,1767030648921,-166.66,0.00023114,2]
[400022008,1767030648931,-1322.59,0.0002362,2]
[400022009,1767030648941,-166.66,0.0002383,2]
[400022010,1767030648951,-1000.0,0.00023878,2]
[400022011,1767030648962,-912.91,0.00024268,2]
[400022012,1767030648973,-14336.15744652,0.00024335,2]
[400022013,1767030648984,-7427.29623615,0.00024402,2]
[400022014,1767030648995,-309.29654756,0.00024438,2]
[400022015,1767030649004,-166.66,0.00024546,2]
[400022016,1767030649014,-1000.0,0.00024658,2]
[400022017,1767030649023,-189.76598591,0.00024667,2]
[400022018,1767030649032,-9287.813217,0.000248,3]
[400022019,1767030649042,-160.0,0.000249,7]
[400022020,1767030649051,-166.66,0.00025261,2]
[400022021,1767030649061,-320.74051982,0.00025807,2]
[400022022,1767030649076,-157.92,0.00025926,2]
[400022023,1767030649085,-1000.0,0.00026532,2]
[400022024,1767030649095,-324.68,0.00026676,2]
[400022025,1767030649106,-332.60791905,0.00027176,2]
[400022026,1767030649116,-500.0,0.00027397,20]
[400022027,1767030649126,-300.0,0.00027397,2]
[400022028,1767030649135,-156.38,0.00027397,30]
[400022029,1767030649145,-14336.15744652,0.00027398,2]
[400022030,1767030649158,-7427.29623615,0.00027454,2]
[400022031,1767030649168,-5929.21,0.00027853,2]
[400022032,1767030649177,-500.0,0.00027863,2]
[400022033,1767030649186,-152.0,0.00028002,3]
[400022034,1767030649197,-1256.0,0.00028002,3]
[400022035,1767030649206,-151.0,0.00028002,3]
[400022036,1767030649215,-152.0,0.00028002,3]
[400022037,1767030649226,-6539.0,0.00028391,2]
[400022038,1767030649235,-361.019,0.00028391,2]
[400022039,1767030649245,-344.91441206,0.00028545,2]
[400022040,1767030649254,-160.0,0.000287,7]
[400022041,1767030649264,-1000.0,0.000289,2]
[400022042,1767030649273,-189.76598591,0.00029179,2]
[400022043,1767030649552,-1000.0,0.00029185,2]
[400022044,1767030649561,-1000.0,0.000292,2]
[400022045,1767030649570,-175.3,0.00029415,2]
[400022046,1767030649580,-357.6762453,0.00029914,2]
[400022047,1767030649590,-4503.28536,0.0003,2]
[400022048,1767030649599,-4503.28537,0.0003,2]
[400022049,1767030649614,-4503.28537,0.0003,2]
[400022050,1767030649625,-4503.28537,0.0003,2]
[400022051,1767030649635,-4503.28537,0.0003,2]
[400022052,1767030649646,-4503.28537,0.0003,2]
[400022053,1767030649655,-4503.28537,0.0003,2]
[400022054,1767030649664,-4503.28537,0.0003,2]
[400022055,1767030649674,-4012.38721904,0.0003,2]
[400022056,1767030666367,195.0,0.00021262,120]
[400022057,1767030666474,195.0,0.0002389,120]
[400022058,1767030668146,300.0,0.00021262,120]
[400022059,1767030669182,600.0,0.00021262,120]
[400022060,1767030669306,600.0,0.0002389,120]
[400022061,1767030670446,2500.0,0.00021262,120]
[400022062,1767030670548,200.27764837,0.0002389,120]
[400022085,1767031278395,250.0,0.00030137,120]
[400022089,1767031361180,507.21,0.00024923,120]
[400022090,1767031361593,507.21,0.00027693,120]
[400022115,1767031832253,-864.08449454,0.00014887,2]
[400022116,1767031832265,-74.19050546,0.00014887,2]
[400022117,1767031832276,-195.0,0.00014989,2]
[400022118,1767031832286,-149.05802646,0.00015088,2]
[400022119,1767031832306,-1.94197354,0.00015088,2]
[400022120,1767031832315,-151.0,0.00015088,2]
[400022121,1767031832325,-151.0,0.00015088,2]
[400022122,1767031832334,-181.96983201,0.00015088,2]
[400022123,1767031832343,-180.22898643,0.00015088,2]
[400022124,1767031832353,-168.93438111,0.00015089,2]
[400022125,1767031832363,-150.0,0.0001509,2]
[400022126,1767031832372,-300.0,0.0001509,2]
[400022127,1767031832382,-2032.67688757,0.00015091,2]
[400022128,1767031832394,-1195.98280455,0.00015091,2]
[400022129,1767031832405,-405.81277303,0.00015091,2]
[400022130,1767031832418,-40429.78290757,0.00015091,2]
[400022131,1767031832430,-1836.04075706,0.00015091,2]
[400022132,1767031832441,-1932.64807024,0.00015091,2]
[400022133,1767031832453,-55590.00090968,0.00015091,2]
[400022134,1767031832466,-899.86519061,0.00015091,2]
[400022135,1767031832478,-255.0437,0.00015091,2]
[400022137,1767031832490,-20005.74962001,0.00015091,2]
[400022139,1767031832503,-11078.47723821,0.00015091,2]
[400022140,1767031832514,-13034.98228488,0.00015091,2]
[400022141,1767031832526,-641.28142672,0.00015091,2]
[400022142,1767031832538,-522.04790989,0.00015091,2]
[400022143,1767031832549,-7211.0,0.00015091,2]
[400022144,1767031832560,-520.72536854,0.00015091,2]
[400022338,1767031838375,-427.56333275,0.00015091,2]
[400022339,1767031838386,-1302.16049747,0.00015091,2]
[400022340,1767031838398,-2890.27613519,0.00015091,2]
[400022341,1767031838483,-465.16280073,0.00015091,2]
[400022342,1767031838495,-620.95481477,0.00015091,2]
[400022343,1767031838541,-148329.34666339,0.00015091,2]
[400022344,1767031838552,-440.45466359,0.00015091,2]
[400022494,1767031840387,-329.96963286,0.00015091,2]
[400022496,1767031840398,-2143.36444771,0.00015091,2]
[400022498,1767031840410,-570.95619936,0.00015091,2]
[400022500,1767031840421,-250.38160005,0.00015091,2]
[400022504,1767031840443,-872.14,0.00015091,2]
[400022506,1767031840454,-839.15,0.00015091,2]
[400022512,1767031840553,-330.67525639,0.00015091,2]
[400022513,1767031840660,-65609.79429862,0.00015091,2]
[400022514,1767031840672,-8576.44393772,0.00015091,2]
[400022515,1767031840717,-32460.18634,0.00015091,2]
[400022516,1767031840728,-2500.94388863,0.00015091,2]
[400022517,1767031840739,-1866.07550372,0.00015091,2]
[400022518,1767031840750,-7301.2,0.00015091,2]
[400022526,1767031844631,-809.74516329,0.00015091,2]
[400022527,1767031844684,-438.0,0.00015091,2]
[400022528,1767031844694,-836.42808866,0.00015091,2]
[400022529,1767031844703,-1130.776072,0.00015091,2]
[400022530,1767031844714,-324.598953,0.00015091,2]
[400022531,1767031844724,-379.46485639,0.00015091,2]
[400022532,1767031844735,-550.50950003,0.00015091,2]
[400022533,1767031844746,-9063.14310798,0.00015091,2]
[400022534,1767031844757,-9630.57044867,0.00015091,2]
[400022535,1767031844778,-6896.23445908,0.00015091,2]
[400022591,1767031846268,-11947.57819722,0.00015091,2]
[400022592,1767031846281,-1190.19780349,0.00015091,2]
[400022593,1767031846322,-1118.4173,0.00015091,2]
[400022594,1767031846333,-68854.39114272,0.00015091,2]
[400022595,1767031846379,-10077.09846024,0.00015091,2]
[400022596,1767031846390,-312.5,0.00015091,2]
[400022597,1767031846434,-12030.29575739,0.00015091,2]
[400022688,1767032999250,340.56,8.412e-05,2]
[400022689,1767032999457,340.56,8.854e-05,2]
[400022690,1767032999667,340.56,9.297e-05,2]
[400022691,1767032999870,340.56,9.74e-05,2]
[400022692,1767033000157,340.56,0.00010182,2]
[400022693,1767033000298,340.56,0.00010625,2]
[400022694,1767033000531,340.56,0.00011068,2]
[400022695,1767033000734,340.56,0.00011511,2]
[400022696,1767033000960,340.56,0.00011953,2]
[400022697,1767033001211,340.56,0.00012396,2]
[400022709,1767033031612,-340.56,0.00012839,2]
[400022710,1767033031623,-340.56,0.00013281,2]
[400022711,1767033031634,-295.86,0.00013699,2]
[400022712,1767033031644,-340.56,0.00013724,2]
[400022713,1767033031653,-1500.0,0.00014,2]
[400022714,1767033031663,-300.0,0.00014123,2]
[400022716,1767033031672,-340.56,0.00014167,2]
[400022718,1767033031683,-340.56,0.0001461,2]
[400022720,1767033031693,-168.93438109,0.00014891,2]
[400022722,1767033031702,-1200.0,0.00014989,2]
[400022724,1767033031711,-300.0,0.00014989,2]
[400022726,1767033031720,-500.0,0.0001499,2]
[400022728,1767033031730,-500.0,0.0001499,2]
[400022730,1767033031739,-230.22359054,0.0001499,2]
[400022732,1767033031748,-387.51068456,0.0001499,2]
[400022734,1767033031757,-500.0,0.0001499,2]
[400022736,1767033031769,-500.0,0.0001499,2]
[400022738,1767033031779,-421.1147571,0.0001499,2]
[400022740,1767033031788,-500.0,0.0001499,2]
[400022742,1767033031797,-500.0,0.0001499,2]
[400022744,1767033031808,-500.0,0.0001499,2]
[400022746,1767033031819,-500.0,0.0001499,2]
[400022748,1767033031828,-171.77156996,0.0001499,2]
[400022750,1767033031838,-500.0,0.0001499,2]
[400022752,1767033031847,-500.0,0.0001499,2]
[400022754,1767033031857,-500.0,0.0001499,2]
[400022756,1767033031866,-500.0,0.0001499,2]
[400022758,1767033031875,-500.0,0.0001499,2]
[400022761,1767033031887,-500.0,0.0001499,2]
[400022763,1767033031897,-500.0,0.0001499,2]
[400022765,1767033031906,-500.0,0.0001499,2]
[400022767,1767033031915,-500.0,0.0001499,2]
[400022769,1767033031925,-500.0,0.0001499,2]
[400022771,1767033031935,-500.0,0.0001499,2]
[400022772,1767033031946,-500.0,0.0001499,2]
[400022774,1767033031955,-500.0,0.0001499,2]
[400022776,1767033031964,-500.0,0.0001499,2]
[400022778,1767033031975,-500.0,0.0001499,2]
[400022781,1767033031985,-500.0,0.0001499,2]
[400022783,1767033031994,-500.0,0.0001499,2]
[400022785,1767033032004,-500.0,0.0001499,2]
[400022787,1767033032013,-500.0,0.0001499,2]
[400022789,1767033032023,-500.0,0.0001499,2]
[400022791,1767033032032,-500.0,0.0001499,2]
[400022793,1767033032041,-500.0,0.0001499,2]
[400022795,1767033032051,-300.66062366,0.0001499,2]
[400022797,1767033032060,-500.0,0.0001499,2]
[400022799,1767033032069,-500.0,0.0001499,2]
[400022801,1767033032078,-500.0,0.0001499,2]
[400022803,1767033032087,-500.0,0.0001499,2]
[400022805,1767033032096,-500.0,0.0001499,2]
[400022807,1767033032105,-600.0,0.0001499,2]
[400022809,1767033032114,-500.0,0.0001499,2]
[400022811,1767033032125,-500.0,0.0001499,2]
[400022813,1767033032134,-189517.87714716,0.00014991,2]
[400022815,1767033032146,-62353.09179285,0.00014991,2]
[400022817,1767033032156,-126917.11587761,0.00014991,2]
[400022818,1767033032167,-89724.69117385,0.00014991,2]
[400023253,1767033037474,-432.46183533,0.00014991,2]
[400023254,1767033037530,-558.38385669,0.00014991,2]
[400023255,1767033037584,-401.616215,0.00014991,2]
[400023256,1767033037598,-1409.95247366,0.00014991,2]
[400023257,1767033037641,-495.31266721,0.00014991,2]
[400023437,1767033039543,-173.07623683,0.00014891,2]
[400023439,1767033039552,-1617.02063554,0.00014991,2]
[400023448,1767033039598,-506194.47146458,0.00014991,2]
[400023458,1767033039653,-959.79,0.00014991,2]
[400023469,1767033039709,-19418.21486052,0.00014991,2]
[400023473,1767033039721,-3713.64811812,0.00014991,2]
[400023476,1767033039733,-340.56,0.00015052,2]
[400023479,1767033039744,-198.47,0.0001509,2]
[400023481,1767033039755,-664.1072918,0.00015091,2]
[400023483,1767033039765,-500.0,0.0001519,2]
[400023485,1767033039779,-198.47,0.00015364,2]
[400023487,1767033039790,-340.56,0.00015495,2]
[400023490,1767033039800,-198.49,0.00015638,2]
[400023492,1767033039810,-340.56,0.00015938,2]
[400023494,1767033039822,-151.0,0.00015997,2]
[400023496,1767033039832,-151.0,0.00015997,2]
[400023498,1767033039842,-500.0,0.00016301,2]
[400023500,1767033039853,-340.56,0.0001638,2]
[400023502,1767033039862,-664.1072918,0.00016687,2]
[400023504,1767033039872,-340.56,0.00016823,2]
[400023506,1767033039882,-154.79527532,0.000169,2]
[400023508,1767033039892,-189.09279759,0.000169,2]
[400023510,1767033039902,-168.93438109,0.000169,2]
[400023512,1767033039913,-217.86657625,0.000169,2]
[400023514,1767033039924,-155.02935764,0.0001699,2]
[400023517,1767033039934,-300.0,0.00016999,2]
[400023519,1767033039946,-218.42244957,0.00016999,2]
[400023521,1767033039956,-500.0,0.00016999,2]
[400023523,1767033039966,-210.91360984,0.00016999,2]
[400023525,1767033039976,-101741.40532044,0.00017,2]
[400023541,1767033040122,-27659.82776326,0.00017,2]
[400023543,1767033040134,-2682.58416226,0.00017,2]
[400023593,1767033043187,-800.197906,0.000169,2]
[400023594,1767033043200,-997.91842106,0.000169,2]
[400023595,1767033043242,-1394.20096422,0.000169,2]
[400023596,1767033043253,-1924.24816474,0.00017,2]
[400023597,1767033043268,-1960.32547659,0.00017,2]
[400023598,1767033044038,-371.36820323,0.00017,2]
[400023599,1767033044051,-437.72700421,0.00017,2]
[400023600,1767033044064,-274.543,0.00017,2]
[400023601,1767033044097,-307.97656556,0.00017,2]
[400023602,1767033044109,-1397.18855336,0.00017,2]
[400023603,1767033044129,-298.50596504,0.00017,2]
[400023604,1767033044142,-21025.12780652,0.00017,2]
[400023605,1767033044155,-815643.1450515,0.00017,2]
[400023606,1767033044173,-151.0,0.00016346,2]
[400023607,1767033044183,-2385.10928337,0.00017,2]
[400023618,1767033045440,-151.0,0.00016346,2]
[400023619,1767033045451,-6286.02902888,0.00017,2]
[400023620,1767033045497,-2950.711,0.00017,2]
[400023621,1767033045553,-358.8,0.00017,2]
[400023695,1767034231572,-375.06010937,0.00014493,2]
[400023696,1767034231581,-2500.0,0.00014543,2]
[400023697,1767034231590,-977.047,0.00014593,2]
[400023698,1767034231600,-311.94,0.0001464,2]
[400023699,1767034231610,-999.0,0.00014674,3]
[400023700,1767034231619,-300.0,0.00014788,2]
[400023701,1767034231628,-182.92,0.00014789,2]
[400023702,1767034231637,-500.0,0.00014789,2]
[400023703,1767034231646,-500.0,0.00014789,2]
[400023704,1767034231655,-500.0,0.00014789,2]
[400023705,1767034231664,-500.0,0.00014789,2]
[400023706,1767034231674,-500.0,0.00014789,2]
[400023707,1767034231684,-500.0,0.00014789,2]
[400023708,1767034231693,-500.0,0.00014789,2]
[400023709,1767034231703,-500.0,0.00014789,2]
[400023710,1767034231712,-500.0,0.00014789,2]
[400023711,1767034231721,-500.0,0.00014789,2]
[400023712,1767034231731,-500.0,0.00014789,2]
[400023713,1767034231740,-500.0,0.00014789,2]
[400023714,1767034231749,-500.0,0.00014789,2]
[400023715,1767034231758,-8176.03898022,0.0001479,2]
[400023716,1767034231767,-579.93493243,0.0001479,2]
[400023717,1767034231776,-10651.37454217,0.0001479,2]
[400023718,1767034231791,-394.45008645,0.0001479,2]
[400023719,1767034231802,-286.96095259,0.0001479,2]
[400023720,1767034231814,-63312.32018056,0.0001479,2]
[400023721,1767034231825,-40197.26022545,0.0001479,2]
[400023722,1767034231836,-40086.3413316,0.0001479,2]
[400023886,1767034237674,-3998.41911373,0.0001479,2]
[400023887,1767034237726,-149548.25311502,0.0001479,2]
[400024076,1767034239673,-232966.7201279,0.0001479,2]
[400024082,1767034239727,-1723.07381486,0.0001479,2]
[400024089,1767034239781,-265.1286,0.0001479,2]
[400024091,1767034239792,-9006.5371147,0.0001479,2]
[400024093,1767034239804,-2406.85730981,0.0001479,2]
[400024096,1767034239815,-2919.09164166,0.0001479,2]
[400024099,1767034239835,-1279.2779985,0.0001479,2]
[400024101,1767034239846,-424.34554978,0.0001479,2]
[400024127,1767034240098,-324.7149346,0.0001479,2]
[400024291,1767034243423,-254.39513532,0.0001479,2]
[400024292,1767034243436,-3412.62979512,0.0001479,2]
[400024293,1767034243448,-1325.45,0.0001479,2]
[400024294,1767034243485,-423.95581672,0.0001479,2]
[400024295,1767034243496,-129704.92124113,0.0001479,2]
[400024296,1767034243507,-836.99523524,0.0001479,2]
[400024297,1767034243545,-345.23044985,0.0001479,2]
[400024312,1767034245711,-500.0,0.0001479,2]
[400024313,1767034245818,-9057.77585375,0.0001479,2]
[400024314,1767034245829,-44591.77749143,0.0001479,2]
[400024315,1767034245872,-37043.84372399,0.0001479,2]
[400024316,1767034245884,-308.93545843,0.0001479,2]
[400024317,1767034245896,-778.86652638,0.0001479,2]
[400024323,1767034246316,-3161.94032983,0.0001479,2]
[400024361,1767035274529,-321.1,0.00013699,2]
[400024362,1767035274558,-346.63864587,0.00013699,2]
[400024363,1767035274585,-263.0,0.00013699,2]
[400024364,1767035274612,-150.0,0.00014185,2]
[400024365,1767035274639,-197.28876403,0.00014195,2]
[400024366,1767035274665,-1000.0,0.00014216,2]
[400024367,1767035274691,-300.0,0.00014294,2]
[400024368,1767035274717,-30077.62524598,0.00014295,2]
[400024369,1767035274742,-197.28876401,0.00014393,2]
[400024370,1767035274767,-197.28876401,0.0001459,2]
[400024371,1767035274792,-150.0,0.00014686,2]
[400024372,1767035274815,-87833.78,0.00014687,2]
[400024373,1767035274839,-500.0,0.0001469,2]
[400024374,1767035274865,-500.0,0.0001469,2]
[400024375,1767035274891,-324.26,0.00014789,2]
[400024376,1767035274920,-151.0,0.0001479,2]
[400024377,1767035274946,-156.38143809,0.00015056,2]
[400024378,1767035274971,-150.0,0.00015056,2]
[400024379,1767035275000,-296.21634986,0.00015056,2]
[400024380,1767035275027,-150.0,0.00015056,2]
[400024381,1767035275052,-150.0,0.00015056,2]
[400024382,1767035275076,-500.0,0.00015056,2]
[400024383,1767035275103,-500.0,0.00015056,2]
[400024384,1767035275130,-324.26,0.00015063,2]
[400024385,1767035275155,-195.0,0.00015068,2]
[400024386,1767035275182,-600.0,0.00015068,2]
[400024387,1767035275207,-2500.0,0.00015068,2]
[400024388,1767035275232,-600.0,0.00015068,2]
[400024389,1767035275259,-195.0,0.00015068,2]
[400024390,1767035275286,-250.0,0.00015068,2]
[400024391,1767035275313,-300.0,0.00015068,2]
[400024392,1767035275339,-150.0,0.00015083,2]
[400024393,1767035275364,-150.0,0.00015083,2]
[400024394,1767035275391,-154.41523631,0.00015083,2]
[400024395,1767035275418,-500.0,0.00015083,2]
[400024396,1767035275450,-500.0,0.00015083,2]
[400024397,1767035275478,-500.0,0.00015111,2]
[400024398,1767035275504,-500.0,0.00015111,2]
[400024399,1767035275530,-500.0,0.00015138,2]
[400024400,1767035275554,-500.0,0.00015138,2]
[400024401,1767035275579,-500.0,0.00015166,2]
[400024402,1767035275604,-4071.42240918,0.00015188,2]
[400024403,1767035275631,-500.0,0.00015193,2]
[400024404,1767035275657,-7358.43508218,0.0001521,2]
[400024405,1767035275687,-500.0,0.0001522,2]
[400024406,1767035275713,-240.69769124,0.00015238,2]
[400024407,1767035275738,-500.0,0.00015248,2]
[400024408,1767035275763,-300.0,0.00015275,2]
[400024409,1767035275788,-3681.28,0.0001531,2]
[400024410,1767035275813,-5589.58,0.0001531,2]
[400024411,1767035275838,-9999.99,0.0001531,2]
[400024412,1767035275864,-885.6,0.0001531,2]
[400024413,1767035275891,-150.99,0.0001531,2]
[400024414,1767035275919,-3809.56,0.0001531,2]
[400024415,1767035275945,-999.99,0.0001531,2]
[400024416,1767035275970,-324.26495801,0.00015337,2]
[400024417,1767035275996,-249.76330934,0.00015374,2]
[400024418,1767035276022,-235.07134997,0.00015476,2]
[400024419,1767035276244,-500.0,0.00015554,2]
[400024420,1767035276316,-420.0,0.00015655,2]
[400024421,1767035276344,-500.0,0.0001575,2]
[400024422,1767035276373,-500.0,0.0001575,2]
[400024423,1767035276400,-503.72732667,0.0001575,2]
[400024424,1767035276428,-151.0,0.00015785,2]
[400024425,1767035276455,-151.0,0.00015785,2]
[400024426,1767035276482,-151.0,0.00015785,2]
[400024427,1767035276508,-151.0,0.00015785,2]
[400024428,1767035276536,-151.0,0.00015805,2]
[400024429,1767035276562,-151.0,0.00015805,2]
[400024430,1767035276589,-151.0,0.00015812,2]
[400024431,1767035276618,-151.0,0.00015812,2]
[400024432,1767035276644,-1000.0,0.00015993,2]
[400024433,1767035276669,-5148.0067256,0.00016,2]
[400024434,1767035276695,-6703.34,0.00016116,2]
[400024435,1767035276722,-196.22588074,0.00016298,2]
[400024436,1767035276761,-500.0,0.00016298,2]
[400024437,1767035276813,-373.12730585,0.00016306,2]
[400024438,1767035276879,-192.69832624,0.00016306,2]
[400024439,1767035276950,-150.0,0.00016438,2]
[400024440,1767035277028,-4550.65,0.00016438,2]
[400024441,1767035277086,-150.0,0.00016465,2]
[400024442,1767035277112,-250.0,0.00016493,2]
[400024443,1767035277139,-3806.49,0.00016702,2]
[400024444,1767035277166,-164.9572609,0.000169,2]
[400024445,1767035277193,-588.74135336,0.000169,2]
[400024446,1767035277219,-225.12879549,0.000169,2]
[400024447,1767035277244,-642.45112104,0.000169,2]
[400024448,1767035277275,-193.78669705,0.0001699,2]
[400024449,1767035277302,-1004.6003,0.00016999,2]
[400024450,1767035277330,-200.77285261,0.00016999,2]
[400024451,1767035277358,-300.0,0.00016999,2]
[400024452,1767035277385,-666.0,0.00016999,2]
[400024453,1767035277414,-300.0,0.00016999,2]
[400024454,1767035277443,-500.0,0.00016999,2]
[400024455,1767035277474,-220.8660563,0.00016999,2]
[400024456,1767035277500,-235.25665456,0.00016999,2]
[400024457,1767035277532,-246.9146349,0.00016999,2]
[400024458,1767035277560,-500.0,0.00016999,2]
[400024459,1767035277586,-185.75239666,0.00016999,2]
[400024460,1767035277613,-500.0,0.00016999,2]
[400024461,1767035277644,-500.0,0.00016999,2]
[400024462,1767035277675,-500.0,0.00016999,2]
[400024463,1767035277703,-230.98913896,0.00016999,2]
[400024464,1767035277734,-500.0,0.00016999,2]
[400024465,1767035277766,-500.0,0.00016999,2]
[400024466,1767035277795,-500.0,0.00016999,2]
[400024467,1767035277824,-500.0,0.00016999,2]
[400024468,1767035277855,-500.0,0.00016999,2]
[400024469,1767035277885,-500.0,0.00016999,2]
[400024470,1767035277913,-500.0,0.00016999,2]
[400024471,1767035277942,-500.0,0.00016999,2]
[400024472,1767035277972,-500.0,0.00016999,2]
[400024473,1767035278008,-500.0,0.00016999,2]
[400024474,1767035278039,-500.0,0.00016999,2]
[400024475,1767035278069,-537.85676122,0.00016999,2]
[400024476,1767035278099,-500.0,0.00016999,2]
[400024477,1767035278130,-500.0,0.00016999,2]
[400024478,1767035278159,-500.0,0.00016999,2]
[400024479,1767035278188,-500.0,0.00016999,2]
[400024480,1767035278218,-500.0,0.00016999,2]
[400024481,1767035278246,-1564176.47240377,0.00017,2]
[400024496,1767035431715,-150.0,0.00015036,2]
[400024498,1767035431726,-150.0,0.00015036,2]
[400024500,1767035431736,-150.0,0.00015063,2]
[400024501,1767035431748,-200.0,0.00015091,2]
[400024502,1767035431758,-217.67032181,0.00015691,2]
[400024503,1767035431768,-217.67032175,0.00015814,2]
[400024504,1767035431780,-217.67032175,0.00015936,2]
[400024505,1767035431791,-217.67032175,0.00016059,2]
[400024506,1767035431801,-217.67032175,0.00016182,2]
[400024507,1767035431812,-151.0,0.00016229,2]
[400024508,1767035431823,-151.0,0.00016229,2]
[400024509,1767035431833,-217.67032175,0.00016304,2]
[400024510,1767035431844,-217.67032175,0.00016427,2]
[400024511,1767035431854,-150.0,0.00016438,2]
[400024512,1767035431865,-507.44306585,0.000169,2]
[400024513,1767035431875,-1852.42,0.00016963,2]
[400024514,1767035431889,-1328.2145838,0.00016989,2]
[400024515,1767035431899,-98680.91898795,0.00017,2]
[400024516,1767035431913,-2238.41975202,0.00017,2]
[400024517,1767035431926,-3528.14577167,0.00017,2]
[400024518,1767035431939,-345.51780687,0.00017,2]
[400024519,1767035431953,-303.63741467,0.00017,2]
[400024520,1767035431967,-2535.48197541,0.00017,2]
[400024521,1767035431982,-6165.28012438,0.00017,2]
[400024524,1767035431999,-4625.7895929,0.00017,2]
[400024526,1767035432012,-17765.03840616,0.00017,2]
[400024590,1767035437859,-871.06,0.00017,2]
[400024591,1767035437871,-86689.99999994,0.00017,2]
[400024592,1767035437882,-2553.98606414,0.00017,2]
[400024593,1767035437965,-1493.30215106,0.00017,2]
[400024594,1767035437976,-539.93551002,0.00017,2]
[400024800,1767035440343,-106075.36605587,0.00017,2]
[400025043,1767035443423,-151.0,0.0001658,2]
[400025044,1767035443434,-151.0,0.0001658,2]
[400025045,1767035443444,-32219.5844314,0.00017,2]
[400025046,1767035443453,-412480.82856108,0.00017,2]
[400025047,1767035443466,-200336.0703701,0.00017,2]
[400025048,1767035443478,-151.0,0.00017,2]
[400025049,1767035443488,-151.0,0.00017,2]
[400025050,1767035443497,-151.0,0.00017,2]
[400025051,1767035443507,-151.0,0.00017,2]
[400025052,1767035443516,-151.0,0.00017,2]
[400025053,1767035443526,-151.0,0.00017,2]
[400025054,1767035443535,-244.0,0.00017014,2]
[400025055,1767035443547,-197.55,0.00017079,2]
[400025056,1767035443559,-452.06,0.00017625,2]
[400025057,1767035443570,-2068.87,0.00017768,2]
[400025058,1767035443583,-1000.0,0.0001777,2]
[400025059,1767035443593,-166.66,0.00018084,2]
[400025060,1767035443603,-7358.43508218,0.00018265,2]
[400025061,1767035443613,-166.66,0.00018465,2]
[400025062,1767035443625,-166.66,0.00018846,2]
[400025063,1767035443636,-216.63355297,0.0001901,2]
[400025064,1767035443646,-166.66,0.00019226,2]
[400025065,1767035443657,-1000.0,0.00019547,2]
[400025066,1767035443666,-200.0,0.00019595,2]
[400025067,1767035443676,-166.66,0.00019607,2]
[400025068,1767035443685,-200.0,0.00019911,2]
[400025069,1767035443695,-166.66,0.00019988,2]
[400025070,1767035443705,-321.1,0.00020187,2]
[400025071,1767035443715,-507.44306582,0.00020587,2]
[400025072,1767035443726,-5048.0,0.00020597,2]
[400025073,1767035443739,-1073.092,0.00020849,2]
[400025074,1767035443750,-7358.43508218,0.0002132,2]
[400025075,1767035443760,-1000.0,0.00021324,2]
[400025076,1767035443769,-500.0,0.00021589,2]
[400025077,1767035443781,-5000.0,0.00021918,2]
[400025078,1767035443792,-164.95726089,0.00022061,2]
[400025079,1767035443804,-507.21,0.00022154,2]
[400025080,1767035443814,-160.0,0.000222,7]
[400025081,1767035443824,-500.0,0.00022425,2]
[400025082,1767035443835,-500.0,0.00022425,2]
[400025083,1767035443846,-500.0,0.00022425,2]
[400025084,1767035443855,-500.0,0.00022425,2]
[400025085,1767035443865,-200.0,0.00022425,2]